{"text_format":"1","workbook":"xlsx","n_sheets":4,"sheets":["Establishment details","List","Translations","Validation"],"not_rendered":{"charts":0,"images":1,"macros":1,"external_links":0,"defined_names":28,"comments":0,"pivot_tables":0},"unopened":[],"bounds":{"document_bytes":16777216,"sheet_cells":100000,"rows_first":2000,"rows_last":500,"rows_between":2000,"halvings":0,"cell_chars":16384,"cell_head_chars":4096},"cells_cut":0,"cells_raw":0,"read":"whole","date_system":"1900"}

{"sheet":"Establishment details","index":0,"n_rows":14,"n_cols":4,"rows_kept":14,"cut":false,"hidden":false,"merged":[[0,1,0,4],[16,1,16,4]]}
[null,{"$f":"CONCATENATE(\"Počty použitých zvířat \",D14)","v":"Počty použitých zvířat "}]
[]
[]
[null,null,"Stát:","Česko"]
[]
[null,null,"Jméno:"]
[]
[null,null,"Příjmení:"]
[]
[null,null,"E-mail:"]
[]
[null,null,"Zařízení:"]
[]
[null,null,"Údaje za rok:"]

{"sheet":"List","index":1,"n_rows":3,"n_cols":32,"rows_kept":3,"cut":false,"hidden":false,"merged":[]}
[]
[]
[{"$f":"Translations!DA2","v":"Údaje pro EU *"},{"$f":"Translations!DB2","v":"Id 1"},{"$f":"Translations!DC2","v":"Id 2"},{"$f":"Translations!DD2","v":"Id 3"},{"$f":"Translations!DE2","v":"Druh zvířete *"},{"$f":"Translations!DF2","v":"Upřesněte \"ostatní\""},{"$f":"Translations!DG2","v":"Počet zvířat *"},{"$f":"Translations!DH2","v":"Opětovné použití *"},{"$f":"Translations!DI2","v":"Místo narození (původ)"},{"$f":"Translations!DJ2","v":"Subhumánní primáti - místo narození"},{"$f":"Translations!DW2","v":"Subhumánní primáti - typ populace: Soběstačná populace"},{"$f":"Translations!DK2","v":"Subhumánní primáti - generace"},{"$f":"Translations!DL2","v":"Genetický stav *"},{"$f":"Translations!DM2","v":"Vytvoření nové geneticky upravené linie *"},{"$f":"Translations!DN2","v":"Účel *"},{"$f":"Translations!DO2","v":"Upřesněte \"ostatní\""},{"$f":"Translations!DP2","v":"Druh právního předpisu"},{"$f":"Translations!DQ2","v":"Upřesněte \"ostatní\""},{"$f":"Translations!DR2","v":"Původ právního předpisu"},{"$f":"Translations!DS2","v":"Závažnost pokusu *"},{"$f":"Translations!DT2","v":"Upřesnění závažnosti"},{"$f":"Translations!DU2","v":"Objasnění výstrah"},{"$f":"Translations!DV2","v":"Poznámka"},{"$f":"Translations!DX2","v":"Metody odběru tkáňových vzorků"},{"$f":"Translations!DY2","v":"Specifikujte \"ostatní\" metodu"},{"$f":"Translations!EF2","v":"Závažnost genotypizace"},{"$f":"Translations!DZ2","v":"Pole 1"},{"$f":"Translations!EA2","v":"Pole 2"},{"$f":"Translations!EB2","v":"Pole 3"},{"$f":"Translations!EC2","v":"Pole 4"},{"$f":"Translations!ED2","v":"Pole 5"},{"$f":"Translations!EE2","v":"Pole 6"}]

{"sheet":"Translations","index":2,"n_rows":79,"n_cols":136,"rows_kept":79,"cut":false,"hidden":true,"merged":[[2,104,2,106],[2,108,2,109]]}
[null,"Účel",null,null,null,null,null,null,null,"Kód","Druh zvířete",null,"Kód + druh",null,null,null,null,null,null,"Stát",null,null,"Původ právního předpisu",null,null,null,null,null,null,"Typ právního předpisu",null,null,null,null,null,null,null,"Závažnost pokusu",null,null,null,"Ano / Ne",null,"Jiné živočišné druhy než subhumánní primáti - místo narození",null,null,null,null,null,null,"Subhumánní primáti - místo narození",null,null,null,null,null,null,"Subhumánní primáti - generace",null,null,null,"Genetický stav",null,null,null,null,null,null,"Vykazovaný rok",null,null,"Úroveň 1","Studie základního výzkumu","Translační a aplikovaný výzkum","Použití pro legislativní účely a běžnou výrobu"," ","Kontrola kvality (včetně zkoušení bezpečnosti a účinnosti šarže)","Běžná výroba podle typu produktu","Zkoušení toxicity a jiné zkoušky bezpečnosti podle druhu zkoušky",null,"Metody zkoušek akutní toxicity","Toxicita po opakovaných dávkách","Ekotoxicita","Metody odběru tkáňových vzorků",null,null,null,null,null,null,"Hodnoty rozevíracího seznamu pole 1","Hodnoty rozevíracího seznamu pole 2","Hodnoty rozevíracího seznamu pole 3","Hodnoty rozevíracího seznamu pole 4","Hodnoty rozevíracího seznamu pole 5","Hodnoty rozevíracího seznamu pole 6","Hodnoty rozevíracího seznamu Id1","Hodnoty rozevíracího seznamu Id2","Hodnoty rozevíracího seznamu Id3","Hodnoty rozevíracího seznamu pro jiné druhy","Hodnoty rozevíracího seznamu pro jiné účely","Hodnoty rozevíracího seznamu pro další právní předpisy","Hodnoty rozevíracího seznamu pro upřesnění závažnosti",null,"Záhlaví tabulky"]
[{"$f":"MID(B2,1,6)","v":"[PB1] "},"[PB1] (Základní výzkum) Onkologie",null,null,null,null,null,null,null,"A1","Myš laboratorní (Mus musculus)",null,{"$f":"CONCATENATE(\"[\",J2,\"] \",K2)","v":"[A1] Myš laboratorní (Mus musculus)"},null,null,null,null,null,null,"Rakousko",null,null,"[LO1] Právní předpisy splňující požadavky EU",null,null,null,null,null,null,"[LT1] Právní předpisy týkající se humánních léčivých přípravků",null,null,null,null,null,null,null,"[SV1] Pokusy, při nichž zvíře nenabude vědomí",null,null,null,"[N] Ne",null,"[O1] Zvířata narozená v EU u registrovaného chovatele",null,null,null,null,null,null,"[NHPO1] Zvířata narozená u registrovaného chovatele v EU",null,null,null,null,null,null,"[NHPG1] F0",null,null,null,"[GS1] Bez genetických změn",null,null,null,null,null,null,2021,null,null,"Základní výzkum","[PB1] Onkologie","[PT21] Rakovina u lidí","Kontrola kvality (včetně zkoušení bezpečnosti a účinnosti šarže)"," ","[PR61] Zkoušení bezpečnosti šarže","[PR51] Krevní produkty","Metody zkoušek akutní (po jedné dávce) toxicity (včetně limitní zkoušky)",null,"[PR81] LD50, LC50","[PR87] do 28 dní","[PR98] Akutní toxicita (ekotoxicita)","[IG1] Invazívní genotypizace: odběr krve",null,null,null,null,null,null,null,null,null,null,null,null,null,null,null,null,null,null,null,null,"Údaje pro EU *","Id 1","Id 2","Id 3","Druh zvířete *","Upřesněte \"ostatní\"","Počet zvířat *","Opětovné použití *","Místo narození (původ)","Subhumánní primáti - místo narození","Subhumánní primáti - generace","Genetický stav *","Vytvoření nové geneticky upravené linie *","Účel *","Upřesněte \"ostatní\"","Druh právního předpisu","Upřesněte \"ostatní\"","Původ právního předpisu","Závažnost pokusu *","Upřesnění závažnosti","Objasnění výstrah","Poznámka","Subhumánní primáti - typ populace: Soběstačná populace","Metody odběru tkáňových vzorků","Specifikujte \"ostatní\" metodu","Pole 1","Pole 2","Pole 3","Pole 4","Pole 5","Pole 6","Závažnost genotypizace"]
["[PB2] ","[PB2] (Základní výzkum) Kardiovaskulární, krevní a lymfatický systém",null,null,null,null,null,null,null,"A2","Potkan laboratorní (Rattus norvegicus)",null,"[A2] Potkan laboratorní (Rattus norvegicus)",null,null,null,null,null,null,"Belgie",null,null,"[LO2] Právní předpisy splňující pouze vnitrostátní požadavky (v rámci EU)",null,null,null,null,null,null,"[LT2] Právní předpisy týkající se veterinárních léčivých přípravků a jejich reziduí",null,null,null,null,null,null,null,"[SV2] Mírné [maximálně a včetně]",null,null,null,"[Y] Ano",null,"[O2] Zvířata narozená v EU, ale nikoli u u registrovaného chovatele",null,null,null,null,null,null,"[NHPO2] Zvířata narozená u neregistrovaného chovatele v EU a v ostatních zemích Evropy",null,null,null,null,null,null,"[NHPG2] F1",null,null,null,"[GS2] Geneticky upravená bez škodlivého fenotypu",null,null,null,null,null,null,2022,null,null,"Translační nebo aplikovaný výzkum","[PB2] Kardiovaskulární krevní a lymfatický systém","[PT22] Infekční onemocnění u lidí","[PR71] Ostatní zkoušení účinnosti a tolerance"," ","[PR62] Zkoušení pyrogenity","[PR52] Monoklonální protilátky prostřednictvím metody tvorby výpotku (ascites) v dutině břišní","[PR84] Podráždění / poleptání kůže",null,"[PR82] Ostatní letální metody","[PR88] 29 - 90 dní","[PR99] Chronická toxicita (ekotoxicita)","[IG2] Invazívní genotypizace: biopsie ucha",null,null,null,null,null,null,null,null,null,null,null,null,null,null,null,null,null,null,null,null,"Překlad okna s podrobnostmi",null,null,null,"Překlad okna s podrobnostmi"]
["[PB3] ","[PB3] (Základní výzkum) Nervová soustava",null,null,null,null,null,null,null,"A3","Morče domácí (Cavia porcellus)",null,"[A3] Morče domácí (Cavia porcellus)",null,null,null,null,null,null,"Bulharsko",null,null,"[LO3] Právní předpisy splňující pouze požadavky zemí, které nejsou členy EU",null,null,null,null,null,null,"[LT3] Právní předpisy týkající se zdravotnických prostředků",null,null,null,null,null,null,null,"[SV3] Střední",null,null,null,null,null,"[O3] Zvířata narozená v ostatních zemích Evropy",null,null,null,null,null,null,"[NHPO3] Zvířata narozená v Asii",null,null,null,null,null,null,"[NHPG3] F2 nebo vyšší",null,null,null,"[GS3] Geneticky upravená se škodlivým fenotypem",null,null,null,null,null,null,2023,null,null,"Použití pro legislativní účely a běžnou výrobu","[PB3] Nervová soustava","[PT23] Kardiovaskulární poruchy u lidí","Zkoušení toxicity a jiné zkoušky bezpečnosti včetně farmakologie"," ","[PR63] Zkoušení účinnosti šarže","[PR54] Monoklonální a polyklonální protilátky (vyjma metody tvorby výpotku (ascites) v dutině břišní)","[PR85] Senzibilizace kůže",null,"[PR83] Neletální metody","[PR89] nad 90 dní","[PR100] Toxicita pro reprodukci (ekotoxicita)","[IG3] Invazívní genotypizace: biopsie ocasu",null,null,null,null,null,null,null,null,null,null,null,null,null,null,null,null,null,null,null,null,"Předchozí",null,null,null,"Prvotní účel (úroveň 1):"]
["[PB4] ","[PB4] (Základní výzkum) Dýchací soustava",null,null,null,null,null,null,null,"A4","Křeček zlatý (Mesocricetus auratus)",null,"[A4] Křeček zlatý (Mesocricetus auratus)",null,null,null,null,null,null,"Chorvatsko",null,null,null,null,null,null,null,null,null,"[LT4] Právní předpisy týkající se průmyslových chemických látek",null,null,null,null,null,null,null,"[SV4] Závažné",null,null,null,null,null,"[O4] Zvířata narozená v ostatních zemích světa",null,null,null,null,null,null,"[NHPO4] Zvířata narozená v Americe",null,null,null,null,null,null,null,null,null,null,null,null,null,null,null,null,null,2024,null,null,"[PE40] Ochrana přírodního prostředí v zájmu zdraví nebo dobrých životních podmínek lidí nebo zvířat","[PB4] Dýchací soustava","[PT24] Nervové a duševní poruchy u lidí","Běžná výroba"," ","[PR64] Ostatní kontroly kvality","[PR53] Ostatní","[PR86] Podráždění / poleptání očí",null,null,null,"[PR101] Endokrinní činnost (ekotoxicita)","[IG6] Invazívní genotypizace: biopsie ploutve",null,null,null,null,null,null,null,null,null,null,null,null,null,null,null,null,null,null,null,null,"Aktuální řádek",null,null,null,"2. úroveň účelu:"]
["[PB5] ","[PB5] (Základní výzkum) Gastrointestinální systém včetně jater",null,null,null,null,null,null,null,"A5","Křečík čínský (Cricetulus griseus)",null,"[A5] Křečík čínský (Cricetulus griseus)",null,null,null,null,null,null,"Kypr",null,null,null,null,null,null,null,null,null,"[LT5] Právní předpisy týkající se přípravků na ochranu rostlin",null,null,null,null,null,null,null,null,null,null,null,null,null,null,null,null,null,null,null,null,"[NHPO5] Zvířat narozená v Africe",null,null,null,null,null,null,null,null,null,null,null,null,null,null,null,null,null,2025,null,null,"[PS41] Zachování druhů","[PB5] Gastrointestinální systém včetně jater","[PT25] Poruchy dýchacího ústrojí u lidí",null,null,null,null,"Toxicita po opakovaných dávkách",null,null,null,"[PR102] Bioakumulace (ekotoxicita)","[IG4] Invazívní genotypizace: odstřižení prstíku",null,null,null,null,null,null,null,null,null,null,null,null,null,null,null,null,null,null,null,null,"Pracuj!",null,null,null,"3. úroveň účelu:"]
["[PB6] ","[PB6] (Základní výzkum) Svalová a kosterní soustava",null,null,null,null,null,null,null,"A6","Pískomil mongolský (Meriones unguiculatus)",null,"[A6] Pískomil mongolský (Meriones unguiculatus)",null,null,null,null,null,null,"Česko",null,null,null,null,null,null,null,null,null,"[LT6] Právní předpisy týkající se biocidů",null,null,null,null,null,null,null,null,null,null,null,null,null,null,null,null,null,null,null,null,"[NHPO6] Zvířata narozená jinde",null,null,null,null,null,null,null,null,null,null,null,null,null,null,null,null,null,2026,null,null,"[PE42-1] Vyšší vzdělávání","[PB6] Svalová a kosterní soustava","[PT26] Gastrointestinální poruchy včetně jater u lidí",null,null,null,null,"[PR90] Karcinogenita",null,null,null,"[PR103] Ostatní (ekotoxicita)","[IG5] Invazívní genotypizace: ostatní",null,null,null,null,null,null,null,null,null,null,null,null,null,null,null,null,null,null,null,null,"Následující",null,null,null,"4. úroveň účelu:"]
["[PB7] ","[PB7] (Základní výzkum) Imunitní systém",null,null,null,null,null,null,null,"A7","Ostatní hlodavci (Rodentia)",null,"[A7] Ostatní hlodavci (Rodentia)",null,null,null,null,null,null,"Dánsko",null,null,null,null,null,null,null,null,null,"[LT7] Právní předpisy týkající se potravin, včetně materiálů určených pro styk s potravinami",null,null,null,null,null,null,null,null,null,null,null,null,null,null,null,null,null,null,null,null,null,null,null,null,null,null,null,null,null,null,null,null,null,null,null,null,null,null,2027,null,null,"[PE42-2] Odborná příprava za účelem získání, udržení nebo zlepšení odborných znalostí","[PB7] Imunitní systém","[PT27] Poruchy svalové a kosterní soustavy u lidí",null,null,null,null,"[PR91] Genotoxicita",null,null,null,null,"[ST1] Přebytečná tkáň z označování zvířat děrováním ucha",null,null,null,null,null,null,null,null,null,null,null,null,null,null,null,null,null,null,null,null,"Ulož",null,null,null,"Vyber"]
["[PB8] ","[PB8] (Základní výzkum) Urogenitální / reprodukční systém",null,null,null,null,null,null,null,"A8","Králík domácí (Oryctolagus cuniculus)",null,"[A8] Králík domácí (Oryctolagus cuniculus)",null,null,null,null,null,null,"Estonsko",null,null,null,null,null,null,null,null,null,"[LT8] Právní předpisy týkající se krmiv, včetně předpisů v oblasti bezpečnosti cílových zvířat, pracovníků a životního prostředí",null,null,null,null,null,null,null,null,null,null,null,null,null,null,null,null,null,null,null,null,null,null,null,null,null,null,null,null,null,null,null,null,null,null,null,null,null,null,2028,null,null,"[PF43] Trestní řízení a jiné soudní řízení","[PB8] Urogenitální / reprodukční systém","[PT28] Poruchy imunity u lidí",null,null,null,null,"[PR92] Toxicita pro reprodukci",null,null,null,null,"[ST2] Přebytečná tkáň z označování zvířat odstřižením prstíku",null,null,null,null,null,null,null,null,null,null,null,null,null,null,null,null,null,null,null,null,"Ulož & Pokračuj dále",null,null,null,"Výběr účelu"]
["[PB9] ","[PB9] (Základní výzkum) Smyslové orgány (kůže, oči, uši)",null,null,null,null,null,null,null,"A9","Kočka domácí (Felis catus)",null,"[A9] Kočka domácí (Felis catus)",null,null,null,null,null,null,"Finsko",null,null,null,null,null,null,null,null,null,"[LT9] Právní předpisy týkající se kosmetických přípravků",null,null,null,null,null,null,null,null,null,null,null,null,null,null,null,null,null,null,null,null,null,null,null,null,null,null,null,null,null,null,null,null,null,null,null,null,null,null,2029,null,null,"[PG43] Udržování populací ustálených geneticky upravených zvířat, která nebyla použita v jiných pokusech","[PB9] Smyslové orgány (kůže, oči a uši)","[PT29] Urogenitální / reprodukční poruchy u lidí",null,null,null,null,"[PR93] Vývojová toxicita",null,null,null,null,"[NG1] Neinvazívní genotypizace: odběr srsti",null,null,null,null,null,null,null,null,null,null,null,null,null,null,null,null,null,null,null,null,"Zpět"]
["[PB10]","[PB10] (Základní výzkum) Endokrinní systém / metabolismus",null,null,null,null,null,null,null,"A10","Pes domácí (Canis familiaris)",null,"[A10] Pes domácí (Canis familiaris)",null,null,null,null,null,null,"Francie",null,null,null,null,null,null,null,null,null,"[LT10] Ostatní",null,null,null,null,null,null,null,null,null,null,null,null,null,null,null,null,null,null,null,null,null,null,null,null,null,null,null,null,null,null,null,null,null,null,null,null,null,null,2030,null,null,"[PN107] Účely ze zemí mimo EU","[PB10] Endokrinní systém / metabolismus","[PT30] Poruchy smyslových orgánů (kůže, očí, uší) u lidí",null,null,null,null,"[PR94] Neurotoxicita",null,null,null,null,"[NG2] Neinvazívní genotypizace: pozorování ve speciálním světle",null,null,null,null,null,null,null,null,null,null,null,null,null,null,null,null,null,null,null,null,"Obsah řádku"]
[{"$f":"MID(B12,1,6)","v":"[PB14]"},"[PB14] (Základní výzkum) Vývojová biologie",null,null,null,null,null,null,null,"A11","Fretka (Mustela putorius furo)",null,"[A11] Fretka (Mustela putorius furo)",null,null,null,null,null,null,"Německo",null,null,null,null,null,null,null,null,null,null,null,null,null,null,null,null,null,null,null,null,null,null,null,null,null,null,null,null,null,null,null,null,null,null,null,null,null,null,null,null,null,null,null,null,null,null,null,null,2031,null,null,null,"[PB14] Vývojová biologie","[PT31] Endokrinní / metabolické poruchy u lidí",null,null,null,null,"[PR95] Kinetika (farmakokinetika, toxikokinetika, rezidua)",null,null,null,null,"[NG3] Neinvazívní genotypizace: post mortem",null,null,null,null,null,null,null,null,null,null,null,null,null,null,null,null,null,null,null,null,"Podrobnosti využití zvířat"]
["[PB11]","[PB11] (Základní výzkum) Multisystémové",null,null,null,null,null,null,null,"A12","Ostatní šelmy (Carnivora)",null,"[A12] Ostatní šelmy (Carnivora)",null,null,null,null,null,null,"Řecko",null,null,null,null,null,null,null,null,null,null,null,null,null,null,null,null,null,null,null,null,null,null,null,null,null,null,null,null,null,null,null,null,null,null,null,null,null,null,null,null,null,null,null,null,null,null,null,null,2032,null,null,null,"[PB11] Multisystémové","[PT32] Ostatní poruchy u lidí",null,null,null,null,"[PR96] Farmakodynamika (včetně farmakologické bezpečnosti)",null,null,null,null,"[NG4] Neinvazívní genotypizace: ostatní",null,null,null,null,null,null,null,null,null,null,null,null,null,null,null,null,null,null,null,null,"Hledej"]
["[PB12]","[PB12] (Základní výzkum) Etologie / chování zvířat / zoologie",null,null,null,null,null,null,null,"A13","Koně, osli a kříženci (Equidae)",null,"[A13] Koně, osli a kříženci (Equidae)",null,null,null,null,null,null,"Maďarsko",null,null,null,null,null,null,null,null,null,null,null,null,null,null,null,null,null,null,null,null,null,null,null,null,null,null,null,null,null,null,null,null,null,null,null,null,null,null,null,null,null,null,null,null,null,null,null,null,2033,null,null,null,"[PB12] Etologie / chování zvířat / zoologie","[PT33] Nákazy a poruchy u zvířat",null,null,null,null,"[PR97] Fototoxicita"]
["[PB13]","[PB13] (Základní výzkum) Ostatní",null,null,null,null,null,null,null,"A14","Prase domácí (Sus scrofa domesticus)",null,"[A14] Prase domácí (Sus scrofa domesticus)",null,null,null,null,null,null,"Irsko",null,null,null,null,null,null,null,null,null,null,null,null,null,null,null,null,null,null,null,null,null,null,null,null,null,null,null,null,null,null,null,null,null,null,null,null,null,null,null,null,null,null,null,null,null,null,null,null,null,null,null,null,"[PB13] Ostatní","[PT38] Výživa zvířat",null,null,null,null,"Ekotoxicita"]
["[PT21]","[PT21] (Translační / aplikovaný výzkum) Rakovina u lidí",null,null,null,null,null,null,null,"A15","Koza domácí (Capra aegagrus hircus)",null,"[A15] Koza domácí (Capra aegagrus hircus)",null,null,null,null,null,null,"Itálie",null,null,null,null,null,null,null,null,null,null,null,null,null,null,null,null,null,null,null,null,null,null,null,null,null,null,null,null,null,null,null,null,null,null,null,null,null,null,null,null,null,null,null,null,null,null,null,null,null,null,null,null,null,"[PT34] Dobré životní podmínky zvířat",null,null,null,null,"[PR104] Zkoušení bezpečnosti v oblasti potravin a krmiv"]
["[PT22]","[PT22] (Translační / aplikovaný výzkum) Infekční onemocnění u lidí",null,null,null,null,null,null,null,"A16","Ovce domácí (Ovis aries)",null,"[A16] Ovce domácí (Ovis aries)",null,null,null,null,null,null,"Lotyšsko",null,null,null,null,null,null,null,null,null,null,null,null,null,null,null,null,null,null,null,null,null,null,null,null,null,null,null,null,null,null,null,null,null,null,null,null,null,null,null,null,null,null,null,null,null,null,null,null,null,null,null,null,null,"[PT35] Diagnostika omenocnění",null,null,null,null,"[PR105] Bezpečnost cílového zvířete"]
["[PT23]","[PT23] (Translační / aplikovaný výzkum) Kardiovaskulární poruchy u lidí",null,null,null,null,null,null,null,"A17","Skot (Bos primigenius)",null,"[A17] Skot (Bos primigenius)",null,null,null,null,null,null,"Litva",null,null,null,null,null,null,null,null,null,null,null,null,null,null,null,null,null,null,null,null,null,null,null,null,null,null,null,null,null,null,null,null,null,null,null,null,null,null,null,null,null,null,null,null,null,null,null,null,null,null,null,null,null,"[PT36] Choroby rostlin",null,null,null,null,"[PR107] Kombinované konečné body"]
["[PT24]","[PT24] (Translační / aplikovaný výzkum) Nervové a duševní poruchy u lidí",null,null,null,null,null,null,null,"A18","Poloopice (Prosimia)",null,"[A18] Poloopice (Prosimia)",null,null,null,null,null,null,"Lucembursko",null,null,null,null,null,null,null,null,null,null,null,null,null,null,null,null,null,null,null,null,null,null,null,null,null,null,null,null,null,null,null,null,null,null,null,null,null,null,null,null,null,null,null,null,null,null,null,null,null,null,null,null,null,"[PT37] Toxikologie a ekotoxikologie pro jiné než legislativní účely",null,null,null,null,"[PR106] Ostatní"]
["[PT25]","[PT25] (Translační / aplikovaný výzkum) Poruchy dýchacího ústrojí u lidí",null,null,null,null,null,null,null,"A19","Kosmani a tamaríni (např. Callithrix jacchus)",null,"[A19] Kosmani a tamaríni (např. Callithrix jacchus)",null,null,null,null,null,null,"Malta"]
["[PT26]","[PT26] (Translační / aplikovaný výzkum) Gastrointestinální poruchy včetně jater u lidí",null,null,null,null,null,null,null,"A20","Makak jávský (Macaca fascicularis)",null,"[A20] Makak jávský (Macaca fascicularis)",null,null,null,null,null,null,"Nizozemsko"]
["[PT27]","[PT27] (Translační / aplikovaný výzkum) Poruchy svalové a kosterní soustavy u lidí",null,null,null,null,null,null,null,"A21","Makak rhesus (Macaca mulatta)",null,"[A21] Makak rhesus (Macaca mulatta)",null,null,null,null,null,null,"Polsko"]
["[PT28]","[PT28] (Translační / aplikovaný výzkum) Poruchy imunity u lidí",null,null,null,null,null,null,null,"A22","Kočkodani rodu Chlorocebus (obvykle buď pygerythrus nebo sabaeus)",null,"[A22] Kočkodani rodu Chlorocebus (obvykle buď pygerythrus nebo sabaeus)",null,null,null,null,null,null,"Portugalsko"]
["[PT29]","[PT29] (Translační / aplikovaný výzkum) Urogenitální / reprodukční poruchy u lidí",null,null,null,null,null,null,null,"A23","Paviáni (Papio spp.)",null,"[A23] Paviáni (Papio spp.)",null,null,null,null,null,null,"Rumunsko"]
["[PT30]","[PT30] (Translační / aplikovaný výzkum) Poruchy smyslových orgánů (kůže, očí a uší) u lidí",null,null,null,null,null,null,null,"A24","Kotulové (např. Saimiri sciureus)",null,"[A24] Kotulové (např. Saimiri sciureus)",null,null,null,null,null,null,"Slovensko"]
["[PT31]","[PT31] (Translační / aplikovaný výzkum) Endokrinní / metabolické poruchy u lidí",null,null,null,null,null,null,null,"A25-1","Ostatní opice Starého světa (Cercopithecoidea)",null,"[A25-1] Ostatní opice Starého světa (Cercopithecoidea)",null,null,null,null,null,null,"Slovinsko"]
["[PT32]","[PT32] (Translační / aplikovaný výzkum) Ostatní poruchy u lidí",null,null,null,null,null,null,null,"A25-2","Ostatní opice Nového světa (Ceboidea)",null,"[A25-2] Ostatní opice Nového světa (Ceboidea)",null,null,null,null,null,null,"Španělsko"]
["[PT33]","[PT33] (Translační / aplikovaný výzkum) Nákazy a poruchy u zvířat",null,null,null,null,null,null,null,"A26","Lidoopi (Hominoidea)",null,"[A26] Lidoopi (Hominoidea)",null,null,null,null,null,null,"Švédsko"]
[{"$f":"MID(B29,1,6)","v":"[PT38]"},"[PT38]  (Translační / aplikovaný výzkum) Výživa zvířat",null,null,null,null,null,null,null,"A27","Ostatní savci (ostatní Mammalia)",null,"[A27] Ostatní savci (ostatní Mammalia)",null,null,null,null,null,null,"Spojené království"]
["[PT34]","[PT34] (Translační / aplikovaný výzkum) Dobré životní podmínky zvířat",null,null,null,null,null,null,null,"A28","Kur domácí (Gallus gallus domesticus)",null,"[A28] Kur domácí (Gallus gallus domesticus)",null,null,null,null,null,null," "]
["[PT35]","[PT35] (Translační / aplikovaný výzkum) Diagnostika onemocnění",null,null,null,null,null,null,null,"A37","Krůta domácí (Meleagris gallopavo)",null,{"$f":"CONCATENATE(\"[\",J31,\"] \",K31)","v":"[A37] Krůta domácí (Meleagris gallopavo)"},null,null,null,null,null,null," "]
["[PT36]","[PT36] (Translační / aplikovaný výzkum) Choroby rostlin",null,null,null,null,null,null,null,"A29","Ostatní ptáci (ostatní Aves)",null,"[A29] Ostatní ptáci (ostatní Aves)",null,null,null,null,null,null," "]
["[PT37]","[PT37] (Translační / aplikovaný výzkum) Toxikologie a ekotoxikologie pro jiné než legislativní účely",null,null,null,null,null,null,null,"A30","Plazi (Reptilia)",null,"[A30] Plazi (Reptilia)",null,null,null,null,null,null," "]
["[PE40]","[PE40] Ochrana přírodního prostředí v zájmu zdraví nebo dobrých životních podmínek lidí nebo zvířat",null,null,null,null,null,null,null,"A31","Skokani hnědý a levhartí (Rana temporaria a Rana pipiens)",null,"[A31] Skokani hnědý a levhartí (Rana temporaria a Rana pipiens)",null,null,null,null,null,null," "]
["[PS41]","[PS41] Zachování druhů",null,null,null,null,null,null,null,"A32","Drápatky vodní a tropická (Xenopus laevis a Xenopus tropicalis)",null,"[A32] Drápatky vodní a tropická (Xenopus laevis a Xenopus tropicalis)",null,null,null,null,null,null," "]
[{"$f":"MID(B36,1,8)","v":"[PE42-1]"},"[PE42-1] Vyšší vzdělávání",null,null,null,null,null,null,null,"A33","Ostatní obojživelníci (ostatní Amphibia)",null,"[A33] Ostatní obojživelníci (ostatní Amphibia)",null,null,null,null,null,null," "]
[{"$f":"MID(B37,1,8)","v":"[PE42-2]"},"[PE42-2] Odborná příprava za účelem získání, udržení nebo zlepšení odborných znalostí",null,null,null,null,null,null,null,"A34","Danio pruhované (Danio rerio)",null,"[A34] Danio pruhované (Danio rerio)",null,null,null,null,null,null," "]
[{"$f":"MID(B38,1,6)","v":"[PF43]"},"[PF43] Trestní řízení a jiné soudní řízení",null,null,null,null,null,null,null,"A38","Mořčák evropský (spp. např. Serranidae, Moronidae)",null,"[A38] Mořčák evropský (spp. např. Serranidae, Moronidae)",null,null,null,null,null,null," "]
["[PG43]","[PG43] Udržování populací ustálených geneticky upravených zvířat, která nebyla použita v jiných pokusech",null,null,null,null,null,null,null,"A39","Losos, pstruh, siven a lipan (Salmonidae)",null,"[A39] Losos, pstruh, siven a lipan (Salmonidae)",null,null,null,null,null,null," "]
["[PR51]","[PR51] (Legislativní účely / běžná výroba) Krevní produkty",null,null,null,null,null,null,null,"A40","Živorodka duhová, mečovka mexická, živorodka, plata (Poeciliidae)",null,"[A40] Živorodka duhová, mečovka mexická, živorodka, plata (Poeciliidae)",null,null,null,null,null,null," "]
["[PR52]","[PR52] (Legislativní účely / běžná výroba) Monoklonální protilátky prostřednictvím metody tvorby výpotku (ascites) v dutině břišní",null,null,null,null,null,null,null,"A35","Ostatní ryby (ostatní Pisces)",null,"[A35] Ostatní ryby (ostatní Pisces)",null,null,null,null,null,null," "]
["[PR54]","[PR54] (Legislativní účely / běžná výroba) Monoklonální a polyklonální protilátky (vyjma metody tvorby výpotku (ascites) v dutině břišní)",null,null,null,null,null,null,null,"A36","Hlavonožci (Cephalopoda)",null,"[A36] Hlavonožci (Cephalopoda)",null,null,null,null,null,null," "]
["[PR53]","[PR53] (Legislativní účely / běžná výroba) Ostatní",null,null,null,null,null,null,null," ",null,null,null,null,null,null,null,null,null," "]
["[PR61]","[PR61] (Legislativní účely / kontrola kvality) Zkoušení bezpečnosti šarže",null,null,null,null,null,null,null," ",null,null,null,null,null,null,null,null,null," "]
["[PR62]","[PR62] (Legislativní účely / kontrola kvality) Zkoušení pyrogenity",null,null,null,null,null,null,null," ",null,null,null,null,null,null,null,null,null," "]
["[PR63]","[PR63] (Legislativní účely / kontrola kvality) Zkoušení účinnosti šarže",null,null,null,null,null,null,null," ",null,null,null,null,null,null,null,null,null," "]
["[PR64]","[PR64] (Legislativní účely / kontrola kvality) Ostatní kontroly kvality",null,null,null,null,null,null,null," ",null,null,null,null,null,null,null,null,null," "]
["[PR71]","[PR71] (Legislativní účely ) Ostatní zkoušení účinnosti a tolerance",null,null,null,null,null,null,null," ",null,null,null,null,null,null,null,null,null," "]
["[PR81]","[PR81] (Legislativní účely / Zkoušení toxicity a.. / Akutní a subakutní) LD50, LC50",null,null,null,null,null,null,null," ",null,null,null,null,null,null,null,null,null," "]
["[PR82]","[PR82] (Legislativní účely / Zkoušení toxicity a.. / Akutní a subakutní) Ostatní letální metody",null,null,null,null,null,null,null," ",null,null,null,null,null,null,null,null,null," "]
["[PR83]","[PR83] (Legislativní účely / Zkoušení toxicity a.. / Akutní a subakutní) Neletální metody",null,null,null,null,null,null,null," ",null,null,null,null,null,null,null,null,null," "]
["[PR84]","[PR84] (Legislativní účely / Zkoušení toxicity a.. ) Podráždění / poleptání kůže",null,null,null,null,null,null,null," ",null,null,null,null,null,null,null,null,null," "]
["[PR85]","[PR85] (Legislativní účely / Zkoušení toxicity a..) Senzibilizace kůže",null,null,null,null,null,null,null," ",null,null,null,null,null,null,null,null,null," "]
["[PR86]","[PR86] (Legislativní účely / Zkoušení toxicity a..) Podráždění / poleptání očí",null,null,null,null,null,null,null," ",null,null,null,null,null,null,null,null,null," "]
["[PR87]","[PR87] (Legislativní účely / Zkoušení toxicity a.. / Toxicita po opakovaných dávkách) do 28 dní",null,null,null,null,null,null,null," ",null,null,null,null,null,null,null,null,null," "]
["[PR88]","[PR88] (Legislativní účely / Zkoušení toxicity a.. / Toxicita po opakovaných dávkách) 29 - 90 dní",null,null,null,null,null,null,null," ",null,null,null,null,null,null,null,null,null," "]
["[PR89]","[PR89] (Legislativní účely / Zkoušení toxicity a.. / Toxicita po opakovaných dávkách) nad 90 dní",null,null,null,null,null,null,null," ",null,null,null,null,null,null,null,null,null," "]
["[PR90]","[PR90] (Legislativní účely / Zkoušení toxicity a..) Karcinogenita",null,null,null,null,null,null,null," ",null,null,null,null,null,null,null,null,null," "]
["[PR91]","[PR91] (Legislativní účely / Zkoušení toxicity a..) Genotoxicita",null,null,null,null,null,null,null," ",null,null,null,null,null,null,null,null,null," "]
["[PR92]","[PR92] (Legislativní účely / Zkoušení toxicity a..) Toxicita pro reprodukci",null,null,null,null,null,null,null," ",null,null,null,null,null,null,null,null,null," "]
["[PR93]","[PR93] (Legislativní účely / Zkoušení toxicity a..) Vývojová toxicita",null,null,null,null,null,null,null," ",null,null,null,null,null,null,null,null,null," "]
["[PR94]","[PR94] (Legislativní účely / Zkoušení toxicity a..) Neurotoxicita",null,null,null,null,null,null,null," ",null,null,null,null,null,null,null,null,null," "]
["[PR95]","[PR95] (Legislativní účely / Zkoušení toxicity a..) Kinetika (farmako-, toxiko-, snižování obsahu reziduí)",null,null,null,null,null,null,null," ",null,null,null,null,null,null,null,null,null," "]
["[PR96]","[PR96] (Legislativní účely / Zkoušení toxicity a..) Farmakodynamika (včetně farmakologické bezpečnosti)",null,null,null,null,null,null,null," ",null,null,null,null,null,null,null,null,null," "]
["[PR97]","[PR97] (Legislativní účely / Zkoušení toxicity a..) Fototoxicita",null,null,null,null,null,null,null," ",null,null,null,null,null,null,null,null,null," "]
["[PR98]","[PR98] (Legislativní účely / Zkoušení toxicity a.. / Ekotoxicita) Akutní toxicita",null,null,null,null,null,null,null," ",null,null,null,null,null,null,null,null,null," "]
["[PR99]","[PR99] (Legislativní účely / Zkoušení toxicity a.. / Ekotoxicita) Chronická toxicita",null,null,null,null,null,null,null," ",null,null,null,null,null,null,null,null,null," "]
[{"$f":"MID(B68,1,7)","v":"[PR100]"},"[PR100] (Legislativní účely / Zkoušení toxicity a.. / Ekotoxicita) Toxicita pro reprodukci",null,null,null,null,null,null,null," ",null,null,null,null,null,null,null,null,null," "]
[{"$f":"MID(B69,1,7)","v":"[PR101]"},"[PR101] (Legislativní účely / Zkoušení toxicity a.. / Ekotoxicita) Endokrinní činnost",null,null,null,null,null,null,null," ",null,null,null,null,null,null,null,null,null," "]
["[PR102]","[PR102] (Legislativní účely / Zkoušení toxicity a.. / Ekotoxicita) Bioakumulace",null,null,null,null,null,null,null," ",null,null,null,null,null,null,null,null,null," "]
["[PR103]","[PR103] (Legislativní účely / Zkoušení toxicity a.. / Ekotoxicita) Ostatní",null,null,null,null,null,null,null," ",null,null,null,null,null,null,null,null,null," "]
["[PR104]","[PR104] (Legislativní účely / Zkoušení toxicity a..) Zkoušení bezpečnosti v oblasti potravin a krmiv",null,null,null,null,null,null,null," ",null,null,null,null,null,null,null,null,null," "]
["[PR105]","[PR105] (Legislativní účely / Zkoušení toxicity a..) Bezpečnost cílového zvířete",null,null,null,null,null,null,null," ",null,null,null,null,null,null,null,null,null," "]
["[PR107]","[PR107] (Legislativní účely / Zkoušení toxicity a..) Kombinované konečné body",null,null,null,null,null,null,null," ",null,null,null,null,null,null,null,null,null," "]
["[PR106]","[PR106] (Legislativní účely / Zkoušení toxicity a..) Ostatní",null,null,null,null,null,null,null," ",null,null,null,null,null,null,null,null,null," "]
["[PN107]","[PN107] Účely ze zemí mimo EU",null,null,null,null,null,null,null," ",null,null,null,null,null,null,null,null,null," "]
[null,null,null,null,null,null,null,null,null," "]
[null,null,null,null,null,null,null,null,null," "]
[null,null,null,null,null,null,null,null,null," "]

{"sheet":"Validation","index":3,"n_rows":8,"n_cols":2,"rows_kept":8,"cut":false,"hidden":false,"merged":[[2,1,5,6],[7,1,10,6]]}
[]
[]
[null,"Jestliže chcete zkontrolovat vaše data, klikněte na [Validate], pak opravte případné chyby a klikněte opět na [Validate]."]
[]
[]
[]
[]
[null,"Klikněte na [Clean Validation], jestliže chcete odstranit červené zbarvení buněk vzniklé v důsledku chyb při ověřování."]